[Event "FRA-ch 58 Championnat"]
[Site "Belfort"]
[Date "1983.08.13"]
[Round "2"]
[White "Seret, Jean Luc"]
[Black "Manouck, Thierry"]
[Result "1-0"]
[ECO "A48"]
[WhiteElo "2375"]
[BlackElo "2375"]
[Annotator "Primel,D"]
[PlyCount "61"]
[EventDate "1983.08.12"]
[EventType "tourn"]
[EventRounds "15"]
[EventCountry "FRA"]
[EventCategory "2"]
[SourceTitle "EXT 2016"]
[Source "ChessBase"]
[SourceDate "2015.10.08"]
[SourceVersion "1"]
[SourceVersionDate "2015.10.08"]
[SourceQuality "1"]
[TimeControl "40/9000:16/5400:0"]

1. e4 g6 {Duel théorique intéressant entre deux connaisseurs de la Pirc.} 2.
d4 Bg7 3. c3 d6 4. Bg5 Nf6 5. Nd2 O-O 6. Ngf3 Nc6 7. Be2 h6 (7... e5 $143 8.
dxe5 Nxe5 9. Nxe5 dxe5 10. Qc2 {[%cal Ga1d1,Gd1d8]} h6 11. Bh4 Qe7 12. O-O Be6
13. Rfd1 c6 14. a4 $14) 8. Bh4 Qe8 $146 (8... Nh5 9. O-O {Csom,I-Liebert,H
Kecskemet Toth Memorial 3rd 1970 (1) 1/2}) 9. O-O Nh5 (9... e5) 10. Re1 g5 $6 (
10... Nf4 $142 11. Bf1 e5 12. dxe5 Nxe5 13. Nxe5 dxe5 14. Qb3 a6 15. a4 Qc6 16.
Bc4 Be6 17. Bxe6 Nxe6 18. a5 Qb5 19. f3 Nf4 20. Qxb5 axb5 21. Red1 g5 22. Bf2
Rfd8 23. Nb3 Bf8 24. g3 Nh3+ 25. Kg2 {Ornstein,A (2440)-Krasenkow,M (2575)/
Stockholm 1994/ EXT 2000/1/2-1/2 (39)}) 11. Bg3 e6 $6 {[%csl Rc8][%cal Gf7f5]}
12. Bc4 $1 $16 {Réfute le plan des noirs visant à pousser "f7f5" mais
maintenant le Bc8 est enfermé} Nxg3 (12... f5 $6 13. exf5 Rxf5 14. Qe2 $16)
13. hxg3 Ne7 14. Nh2 $1 {[%csl Rh6][%cal Gd1h5,Rh2g4] les cases blanches de
l'aile roi de MANOUCK se sont affaiblies et le Bc8 ne peut plus les défendre.}
(14. g4 $5 Ng6) 14... Qd8 15. Qh5 {[%csl Rg6]} d5 16. Bb3 f5 (16... dxe4 17.
Nxe4 (17. Ng4 $36 {[%cal Gg4h6]}) 17... Nd5 18. Nf3 {[%cal Ge4g5,Gb3d5]} b6 19.
a4) 17. exf5 exf5 (17... Nxf5 18. Ndf3 $1 {[%cal Gf3e5,Rh2g4]}) 18. Nhf3 {
[%csl Re5]} c6 19. Ne5 $16 {[%csl Ge5]} Bd7 20. Qf3 Be8 21. g4 $1 fxg4 22. Qxg4
Nf5 23. Ne4 $1 $36 {[%csl Rb7,Re6][%cal Ge4c5]} Kh8 24. Nc5 h5 $6 {Provoque un
nouveau affaiblissement de l'aile-roi} 25. Qh3 $1 Qc8 26. Bd1 Nd6 $2 (26... h4)
27. Bg4 $1 Nf5 28. Bxh5 Nh6 29. Bg4 Qb8 30. Bd7 Rf6 $4 31. Ng4 {Thierry
MANOUCK a été surclassé dans la partie par le champion de France sortant.} 1-0

[Event "Rohde op 12th"]
[Site "Sautron"]
[Date "2012.10.29"]
[Round "3"]
[White "Sergeev, Vladimir"]
[Black "Le Roux, Jean Pierre"]
[Result "0-1"]
[ECO "A48"]
[WhiteElo "2475"]
[BlackElo "2563"]
[Annotator "RR"]
[PlyCount "134"]
[EventDate "2012.10.27"]
[EventType "swiss"]
[EventRounds "9"]
[EventCountry "FRA"]
[SourceTitle "EXT 2014"]
[Source "ChessBase"]
[SourceDate "2013.11.20"]
[SourceVersion "1"]
[SourceVersionDate "2013.11.20"]
[SourceQuality "1"]
[TimeControl "40/5400+30:1800+30"]
[WhiteClock "1:30:00"]
[BlackClock "1:30:00"]

1. d4 {[%emt 0:00:30]} Nf6 {[%emt 0:01:58]} 2. Nf3 {[%emt 0:00:38]} g6 {
[%emt 0:01:04]} 3. Bg5 {[%emt 0:00:27]} Bg7 {[%emt 0:00:12]} 4. Nbd2 {[%emt 0:
00:11]} d6 {[%emt 0:01:20]} 5. c3 {[%emt 0:00:13]} O-O {[%emt 0:04:02]} 6. a4 {
[%emt 0:00:30]} Nbd7 {[%emt 0:00:16]} 7. e4 {[%emt 0:00:13]} (7. a5 e5 8. dxe5
dxe5 9. e4 {Malaniuk,V (2496)-Galazewski,T (2289) Warsaw AIG Life rapid 7th
2007 (4) 1-0}) 7... h6 {[%emt 0:02:13]} 8. Bh4 {[%emt 0:00:03]} Nh5 $1 {
[%emt 0:01:40]} 9. Bc4 {[%emt 0:05:08][%csl Gf4][%cal Gg6g5]} c5 $1 $146 {
[%emt 0:05:17] Après l'ouverture de la colonne "c", le Nd2 sera assez mal
placé et les Noirs égalisent facilement} (9... Nf4 10. O-O c6 11. Re1 g5 12.
Bg3 e5 13. Nf1 Qc7 14. Ne3 Nf6 15. Qc2 Be6 16. dxe5 dxe5 17. Rad1 Rae8 18. Rd2
Bc8 19. Bb3 Nh7 20. Red1 h5 21. Nc4 Ng6 22. h4 g4 23. Nd4 Nf4 24. Nf5 {
Malakhatko,V (2569)-Vovk,Y (2420)/Calvi 2005/CBM 105 ext/1-0 (32)}) (9... g5
10. Bg3 (10. Nxg5 $5 hxg5 11. Bxg5 Nhf6 12. h4 $44 {[%csl Gh1,Gh4][%cal Gh4h5,
Gh5h6]})) 10. O-O {[%emt 0:04:54]} (10. a5) 10... cxd4 $11 {[%emt 0:03:52]
[%csl Rd2]} 11. cxd4 {[%emt 0:01:00]} g5 {[%emt 0:03:23]} 12. Bg3 {[%emt 0:02:
24]} Nxg3 {[%emt 0:03:58]} 13. hxg3 {[%emt 0:00:30]} Qa5 {[%emt 0:07:10]} 14.
Qc2 {[%emt 0:18:30]} e6 $1 {[%emt 0:07:07] Il faut garder la souplesse dans la
structure pour profiter de la paire de B} 15. d5 {[%emt 0:14:11][%csl Gg7]
[%cal Gg7b2]} Nb6 {[%emt 0:05:04]} 16. dxe6 {[%emt 0:03:04]} fxe6 {[%emt 0:05:
12]} 17. Bb3 {[%emt 0:18:18]} Bd7 {[%emt 0:06:01]} 18. Nc4 $6 {[%emt 0:04:33]}
Nxc4 {[%emt 0:11:20]} 19. Bxc4 {[%emt 0:02:28]} Qb4 {[%emt 0:07:36]} (19...
Rac8 20. Qb3 Rfe8) 20. Ra2 $6 {[%emt 0:00:55][%csl Ra2]} (20. Rad1 $142 Rac8 (
20... Bxb2 21. Rb1) (20... Qxb2 21. Qxb2 Bxb2 22. Rxd6) 21. b3) 20... Kh8 {
[%emt 0:06:58]} 21. b3 {[%emt 0:00:40]} a6 {[%emt 0:01:59]} 22. a5 $6 {[%emt 0:
01:03] Trop tard car les Blancs seront obligés de laisser la Ra2 sur sa
mauvaise case pour défendre le P"a5"} Bc6 {[%emt 0:02:20]} 23. Rd1 {[%emt 0:02:
24]} (23. Bxe6 Bxe4) 23... Rad8 {[%emt 0:03:42]} 24. Bxe6 {[%emt 0:08:33]} Bxe4
{[%emt 0:00:56]} 25. Qc4 {[%emt 0:03:19]} Qxc4 {[%emt 0:00:21]} 26. bxc4 {
[%emt 0:00:05]} Rde8 {[%emt 0:01:00]} 27. Bd5 {[%emt 0:00:08]} Bxd5 {[%emt 0:
00:43]} 28. cxd5 {[%emt 0:00:13]} (28. Rxd5) 28... Re4 {[%emt 0:01:11]} 29. Kf1
{[%emt 0:04:18]} Rc8 {[%emt 0:01:39]} 30. Ng1 {[%emt 0:01:51]} (30. Re2 Rxe2
31. Kxe2 Rc5) 30... Rc5 $36 {[%emt 0:01:26][%csl Ra5,Rd5]} 31. Ra3 {[%emt 0:02:
39][%csl Ra3]} Rb5 {[%emt 0:02:23]} 32. Ne2 {[%emt 0:01:08]} Rb2 {[%emt 0:00:
18]} 33. Nc3 {[%emt 0:00:22]} Rc4 {[%emt 0:01:00]} 34. Na4 {[%emt 0:00:11]}
Rbb4 {[%emt 0:01:00]} 35. Nb6 {[%emt 0:00:09]} Rc2 {[%emt 0:00:06]} 36. Rf3 {
[%emt 0:00:37]} Re4 {[%emt 0:01:23]} 37. Nd7 {[%emt 0:01:02]} Re7 {[%emt 0:00:
36]} 38. Nb6 {[%emt 0:00:19]} Bd4 {[%emt 0:00:26]} 39. Re1 {[%emt 0:00:47]}
Rxe1+ {[%emt 0:00:34]} 40. Kxe1 {[%emt 0:00:00]} Bxb6 {[%emt 0:00:00]} 41. axb6
{[%emt 0:00:20]} Rb2 {[%emt 0:01:25]} 42. Rf6 Rxb6 {[%emt 0:30:49][%csl Ga6]}
43. Rxh6+ {[%emt 0:01:21]} Kg7 {[%emt 0:00:00]} 44. Re6 {[%emt 0:06:14]} a5 $15
{[%emt 0:00:00][%cal Gb6a6] Les Blancs manquent de contre-jeu face а la
majorité de l'aile-dame} 45. Kd2 {[%emt 0:01:49]} a4 {[%emt 0:00:00]} (45...
Kf7 46. Kc3 a4 47. Re4 Ra6 48. Rb4 a3 49. Rxb7+ Kf6 50. Rb1 Ke5 51. Kc4 (51.
Ra1 Kxd5) 51... a2 52. Ra1 Ke4 {[%cal Ga6a4]}) 46. Re4 {[%emt 0:03:00]} a3 {
[%emt 0:00:00]} 47. Ra4 {[%emt 0:01:43]} Rb2+ {[%emt 0:00:00]} 48. Kc3 {
[%emt 0:00:23]} Rxf2 {[%emt 0:00:00]} 49. Rxa3 {[%emt 0:00:14] les échanges de
P favorisent la défense des Blancs qui ont maintenant des bonnes chances de
nulle} Rxg2 {[%emt 0:00:00]} 50. Kd4 {[%emt 0:00:13]} Kg6 {[%emt 0:00:00]} 51.
Ke4 $6 {[%emt 0:01:21]} (51. Rb3 Kf5 52. Rxb7 Rxg3 53. Rf7+ Kg4 54. Rd7 Kf3 55.
Rxd6 Rg4+ 56. Kd3 Rf4 57. Rd8 g4 58. d6 g3 59. Rc8 Rf6 60. Rc6 g2 61. d7 $3
Rxc6 62. d8=Q g1=Q 63. Qd5+) 51... Rb2 {[%emt 0:00:00]} 52. Ra4 {[%emt 0:01:08]
} Kf6 {[%emt 0:00:00]} 53. Kd4 {[%emt 0:07:19]} b5 $1 {[%emt 0:00:00]} 54. Ra8
{[%emt 0:00:09]} Rb4+ {[%emt 0:00:00]} 55. Kc3 {[%emt 0:00:11]} Rc4+ {[%emt 0:
00:12]} 56. Kb3 {[%emt 0:00:30]} Ke5 {[%emt 0:00:28]} 57. Rb8 {[%emt 0:00:24]}
Rc5 {[%emt 0:02:09]} 58. Re8+ {[%emt 0:05:26]} Kf5 {[%emt 0:00:52]} (58... Kxd5
59. Rg8 Ke4 {[%cal Gd6d1]}) 59. Kb4 {[%emt 0:00:33]} Rxd5 $19 {[%emt 0:00:11]
[%cal Gf5g4]} 60. Re3 {[%emt 0:00:10]} Kg4 {[%emt 0:00:30]} 61. Ra3 {[%emt 0:
00:09]} Rf5 {[%emt 0:00:14]} 62. Rd3 {[%emt 0:00:08]} Rf3 {[%emt 0:01:53]} 63.
Rd5 {[%emt 0:00:42]} Rxg3 {[%emt 0:00:21]} 64. Rxd6 {[%emt 0:00:15]} Kh3 {
[%emt 0:01:02]} 65. Kxb5 {[%emt 0:00:17]} Rc3 {[%emt 0:00:41]} 66. Kb4 {
[%emt 0:00:05]} Rc8 {[%emt 0:00:46]} 67. Rd3+ {[%emt 0:00:29]} Kh4 {[%emt 0:00:
04]} 0-1

[Event "Tata Steel-B 79th"]
[Site "Wijk aan Zee"]
[Date "2017.01.27"]
[Round "11"]
[White "Dobrov, Vladimir"]
[Black "Lu, Shanglei"]
[Result "0-1"]
[ECO "A48"]
[WhiteElo "2499"]
[BlackElo "2612"]
[Annotator "Ramirez Alvarez,A"]
[PlyCount "78"]
[EventDate "2017.01.14"]
[EventType "tourn"]
[EventRounds "13"]
[EventCountry "NED"]
[EventCategory "14"]
[SourceTitle "CBM 177"]
[Source "ChessBase"]
[SourceDate "2017.03.16"]
[SourceVersion "1"]
[SourceVersionDate "2017.03.16"]
[SourceQuality "1"]
[TimeControl "40/6000+30:20/3000+30:900+30"]

1. Nf3 {[%emt 0:00:00]} g6 {[%emt 0:01:29]} 2. d4 {[%emt 0:01:04]} Bg7 {
[%emt 0:00:36]} 3. c3 {[%emt 0:04:31]} Nf6 {[%emt 0:02:35]} 4. Bg5 {[%emt 0:00:
32]} d6 {[%emt 0:03:02]} 5. Nbd2 {[%emt 0:00:28]} O-O {[%emt 0:01:42]} 6. e4 {
[%emt 0:02:10]} c5 {[%emt 0:02:10]} 7. Bd3 {[%emt 0:09:52]} cxd4 {[%emt 0:01:
46]} 8. Nxd4 {[%emt 0:09:48]} h6 {[%emt 0:02:18]} 9. Bh4 {[%emt 0:00:47]} Nc6 {
[%emt 0:05:20]} 10. Nxc6 {[%emt 0:04:21]} bxc6 {[%emt 0:00:58]} 11. f4 $146 {
[%emt 0:01:44]} (11. O-O Nd7 12. Nc4 Nc5 13. Ne3 f5 14. exf5 gxf5 15. Bc4+ Kh8
16. Qh5 d5 17. Rfd1 Qe8 18. Be2 Qxh5 19. Bxh5 Bf6 20. Bxf6+ Rxf6 21. f4 Rb8 22.
c4 e6 23. Rac1 Ne4 24. cxd5 exd5 25. Be8 Bb7 26. Bh5 a5 27. Rd3 c5 28. Ra3 d4
29. Nc4 Bd5 30. Rxa5 Bxc4 31. Rxc4 Rxb2 32. Ra8+ Kg7 33. Ra7+ Kg8 34. g3 Rfb6
35. Rc1 d3 36. Rd7 d2 37. Rf1 Rd6 38. Rc7 Rc2 39. a4 Rc1 40. Be2 Rxf1+ {
Rehn,R (2173) -Luukkonen,T (2197) Jyvaskyla 2007 0-1}) 11... Qb6 {[%emt 0:27:
41]} 12. Nc4 {[%emt 0:00:57]} Qb8 {[%emt 0:00:22]} 13. Qe2 {[%emt 0:04:16]} d5
{[%emt 0:07:24]} 14. Ne5 {[%emt 0:00:58]} dxe4 {[%emt 0:14:45]} 15. Bc4 {
[%emt 0:00:16]} Bf5 {[%emt 0:08:34]} 16. g4 {[%emt 0:03:31]} Nxg4 {[%emt 0:05:
49]} 17. Nxg4 {[%emt 0:00:14]} Qxf4 {[%emt 0:00:14]} 18. h3 {[%emt 0:00:17]}
Rab8 {[%emt 0:00:48]} 19. Rf1 {[%emt 0:09:36]} Qd6 {[%emt 0:00:04]} 20. Rd1 {
[%emt 0:00:44]} Qc5 {[%emt 0:00:13]} 21. Bf2 {[%emt 0:03:17]} Qa5 {[%emt 0:00:
03]} 22. Bd4 {[%emt 0:00:29]} Rfd8 {[%emt 0:06:22]} 23. Bxg7 {[%emt 0:00:47]}
Kxg7 {[%emt 0:00:02]} 24. Rxd8 {[%emt 0:00:46]} Rxd8 {[%emt 0:04:47]} 25. Qe3 {
[%emt 0:00:34]} Rh8 {[%emt 0:00:05]} 26. Qd4+ {[%emt 0:03:04]} f6 {[%emt 0:00:
28]} 27. Ne3 $2 {And eventually Black won} (27. Nxf6 $1 exf6 28. Rxf5 Qxf5 (
28... gxf5 29. Qg1+ (29. Qd7+ Kg6 30. Qf7+ Kg5 31. Qg7+ Kf4 32. Qxh8 {also
works, so full points for that.}) 29... Kf8 30. Qg6 $1 {And Black cannot
prevent losing the rook on h8.}) 29. Qxa7+ Kf8 30. Qf7#) 27... Bxh3 28. Qxe4
Qc5 29. Rg1 g5 30. Rh1 Bd7 31. Bd3 h5 32. Ke2 h4 33. Qg6+ Kf8 34. Bc4 Be8 35.
Qe4 Bf7 36. Bxf7 Kxf7 37. Kd3 Qb5+ 38. Nc4 h3 39. Ke3 Rh4 0-1